fUSD/lending_fUSD_20240508
["ID","MTS","AMOUNT","RATE_DAILY","PERIOD"]
[326666220,1715208662066,-500.0,0.00027945,5]
[326666222,1715208662080,-500.0,0.00027945,5]
[326666224,1715208662090,-500.0,0.00027945,5]
[326666226,1715208662099,-624.02,0.00027945,5]
[326666228,1715208662109,-971.72,0.00027945,5]
[326666230,1715208662119,-525.77,0.00027945,5]
[326666232,1715208662128,-500.0,0.00027945,5]
[326666234,1715208662138,-500.0,0.00027945,5]
[326666236,1715208662147,-150.0,0.00027945,5]
[326666238,1715208662156,-500.0,0.00027945,5]
[326666240,1715208662166,-500.0,0.00027945,5]
[326666242,1715208662175,-500.0,0.00027945,5]
[326666244,1715208662184,-587.71,0.00027945,5]
[326666246,1715208662194,-585.39,0.00027945,5]
[326666248,1715208662203,-500.0,0.00027945,5]
[326666250,1715208662213,-500.0,0.00027945,5]
[326666252,1715208662223,-230.63,0.00027945,5]
[326666254,1715208662233,-500.0,0.00027945,5]
[326666256,1715208662242,-500.0,0.00027945,5]
[326666258,1715208662252,-748.52,0.00027945,5]
[326666260,1715208662261,-500.0,0.00027945,5]
[326666262,1715208662269,-500.0,0.00027945,5]
[326666264,1715208662279,-535.35,0.00027945,5]
[326666266,1715208662287,-500.0,0.00027945,5]
[326666268,1715208662297,-500.0,0.00027945,5]
[326666270,1715208662311,-500.0,0.00027945,5]
[326666272,1715208662320,-500.0,0.00027945,5]
[326666274,1715208662328,-500.0,0.00027945,5]
[326666276,1715208662337,-559.07,0.00027945,5]
[326666278,1715208662347,-500.0,0.00027945,5]
[326666280,1715208662356,-500.0,0.00027945,5]
[326666282,1715208662365,-500.0,0.00027945,5]
[326666284,1715208662374,-500.0,0.00027945,5]
[326666286,1715208662386,-741.64,0.00027945,5]
[326666288,1715208662396,-500.0,0.00027945,5]
[326666290,1715208662405,-500.0,0.00027945,5]
[326666292,1715208662414,-500.0,0.00027945,5]
[326666294,1715208662423,-500.0,0.00027945,5]
[326666296,1715208662432,-500.0,0.00027945,5]
[326666298,1715208662442,-500.0,0.00027945,5]
[326666300,1715208662450,-263.03,0.00027945,5]
[326666302,1715208662461,-500.0,0.00027945,5]
[326666304,1715208662470,-500.0,0.00027945,5]
[326666306,1715208662480,-500.0,0.00027945,5]
[326666308,1715208662489,-667.17,0.00027945,5]
[326666310,1715208662499,-500.0,0.00027945,5]
[326666312,1715208662508,-373.98,0.00027945,5]
[326666314,1715208662518,-333.13,0.00027945,5]
[326666316,1715208662527,-151.0,0.00027945,7]
[326666318,1715208662536,-371.47,0.00027945,5]
[326666320,1715208662546,-741.43,0.00027945,5]
[326666322,1715208662555,-500.0,0.00027945,5]
[326666324,1715208662563,-500.0,0.00027945,5]
[326666326,1715208662573,-500.0,0.00027945,5]
[326666328,1715208662582,-1815.47,0.00027945,5]
[326666330,1715208662591,-500.0,0.00027945,5]
[326666331,1715208662600,-500.0,0.00027945,5]
[326666332,1715208662609,-655.76,0.00027945,5]
[326666333,1715208662618,-528.13,0.00027945,5]
[326666334,1715208662627,-500.0,0.00027945,5]
[326666335,1715208662636,-500.0,0.00027945,5]
[326666336,1715208662646,-629.97,0.00027945,5]
[326666337,1715208662655,-500.0,0.00027945,5]
[326666338,1715208662664,-645.73,0.00027945,5]
[326666340,1715208662673,-987.55,0.00027945,5]
[326666342,1715208662682,-500.0,0.00027945,5]
[326666344,1715208662692,-500.0,0.00027945,5]
[326666346,1715208662702,-500.0,0.00027945,5]
[326666348,1715208662711,-500.0,0.00027945,5]
[326666350,1715208662719,-500.0,0.00027945,5]
[326666352,1715208662729,-3302.39,0.00027945,5]
[326666354,1715208662738,-1193.19,0.00027945,5]
[326666356,1715208662747,-500.0,0.00027945,5]
[326666358,1715208662756,-338.96,0.00027945,5]
[326666360,1715208662765,-591.74,0.00027945,5]
[326666362,1715208662774,-500.0,0.00027945,5]
[326666364,1715208662784,-464.03,0.00027945,5]
[326666366,1715208662793,-500.0,0.00027945,5]
[326666368,1715208662803,-500.0,0.00027945,5]
[326666370,1715208662812,-500.0,0.00027945,5]
[326666371,1715208662821,-692.63,0.00027945,5]
[326666372,1715208662830,-679.44,0.00027945,5]
[326666373,1715208662842,-9108.4,0.00027945,5]
[326666374,1715208662852,-591.9,0.00027945,5]
[326666375,1715208662861,-500.0,0.00027945,5]
[326666376,1715208662870,-500.0,0.00027945,5]
[326666377,1715208662880,-1326.08,0.00027945,5]
[326666378,1715208662889,-500.0,0.00027945,5]
[326666379,1715208662898,-500.0,0.00027945,5]
[326666380,1715208662907,-1273.17,0.00027945,5]
[326666381,1715208662916,-500.0,0.00027945,5]
[326666382,1715208662925,-2576.34,0.00027945,5]
[326666383,1715208662934,-156.74,0.00027945,5]
[326666384,1715208662943,-500.47,0.00027945,5]
[326666385,1715208662952,-500.0,0.00027945,5]
[326666386,1715208662962,-954.96,0.00027945,5]
[326666387,1715208662971,-501.39,0.00027945,5]
[326666388,1715208662981,-716.02,0.00027945,5]
[326666389,1715208662990,-500.0,0.00027945,5]
[326666390,1715208663000,-651.31,0.00027945,5]
[326666391,1715208663009,-500.0,0.00027945,5]
[326666392,1715208663019,-151.0,0.00027945,7]
[326666393,1715208663028,-686.64,0.00027945,5]
[326666394,1715208663038,-500.0,0.00027945,5]
[326666395,1715208663047,-1026.97,0.00027945,5]
[326666396,1715208663057,-302.270132,0.00027945,7]
[326666397,1715208663067,-704.81,0.00027945,5]
[326666398,1715208663076,-151.0,0.00027945,7]
[326666399,1715208663085,-500.0,0.00027945,5]
[326666400,1715208663095,-2165.35,0.00027945,5]
[326666401,1715208663104,-7561.02,0.00027945,5]
[326666402,1715208663113,-2885.96,0.00027945,5]
[326666403,1715208663122,-500.0,0.00027945,5]
[326666404,1715208663132,-151.0,0.00027945,7]
[326666405,1715208663141,-500.0,0.00027945,5]
[326666406,1715208663151,-220.68,0.00027945,5]
[326666407,1715208663161,-241.797598,0.00027945,7]
[326666408,1715208663170,-302.270132,0.00027945,7]
[326666409,1715208663179,-514.14,0.00027945,5]
[326666410,1715208663188,-500.0,0.00027945,5]
[326666411,1715208663198,-1017.39,0.00027945,5]
[326666412,1715208663208,-1487.48,0.00027945,5]
[326666413,1715208663217,-500.0,0.00027945,5]
[326666414,1715208663226,-594.68,0.00027945,5]
[326666415,1715208663235,-500.0,0.00027945,5]
[326666416,1715208663244,-500.0,0.00027945,5]
[326666417,1715208663253,-500.0,0.00027945,5]
[326666418,1715208663262,-500.0,0.00027945,5]
[326666419,1715208663271,-500.0,0.00027945,5]
[326666420,1715208663280,-500.0,0.00027945,5]
[326666422,1715208663289,-500.0,0.00027945,5]
[326666423,1715208663299,-500.0,0.00027945,5]
[326666425,1715208663314,-518.77,0.00027945,5]
[326666437,1715208663469,-500.0,0.00027945,5]
[326666438,1715208663479,-734.36,0.00027945,5]
[326666440,1715208663489,-169.38337872,0.00027945,5]
[326666442,1715208663498,-2781.64,0.00027945,5]
[326666444,1715208663508,-500.0,0.00027945,5]
[326666445,1715208663518,-500.0,0.00027945,5]
[326666446,1715208663528,-500.0,0.00027945,5]
[326666447,1715208663537,-500.0,0.00027945,5]
[326666448,1715208663547,-500.0,0.00027945,5]
[326666449,1715208663556,-500.0,0.00027945,5]
[326666450,1715208663565,-500.0,0.00027945,5]
[326666451,1715208663575,-500.0,0.00027945,5]
[326666452,1715208663584,-882.61,0.00027945,5]
[326666453,1715208663594,-500.0,0.00027945,5]
[326666454,1715208663604,-500.0,0.00027945,5]
[326666455,1715208663614,-500.0,0.00027945,5]
[326666456,1715208663624,-500.0,0.00027945,5]
[326666457,1715208663638,-205.56,0.00027945,5]
[326666458,1715208663655,-500.0,0.00027945,5]
[326666459,1715208663678,-500.0,0.00027945,5]
[326666460,1715208663695,-1648.66,0.00027945,5]
[326666461,1715208663717,-1152.81,0.00027945,5]
[326666462,1715208663732,-500.0,0.00027945,5]
[326666463,1715208663742,-1014.85,0.00027945,5]
[326666464,1715208663752,-362.34,0.00027945,5]
[326666465,1715208663762,-500.0,0.00027945,5]
[326666466,1715208663771,-1320.52,0.00027945,5]
[326666467,1715208663781,-2331.73,0.00027945,5]
[326666468,1715208663791,-814.17,0.00027945,5]
[326666469,1715208663800,-500.0,0.00027945,5]
[326666470,1715208663811,-500.0,0.00027945,5]
[326666471,1715208663821,-500.0,0.00027945,5]
[326666472,1715208663831,-500.0,0.00027945,5]
[326666473,1715208663841,-635.17,0.00027945,5]
[326666474,1715208663850,-500.0,0.00027945,5]
[326666475,1715208663859,-525.03,0.00027945,5]
[326666476,1715208663869,-1781.4,0.00027945,5]
[326666477,1715208663880,-500.0,0.00027945,5]
[326666478,1715208663889,-500.0,0.00027945,5]
[326666479,1715208663899,-1951.16,0.00027945,5]
[326666480,1715208663909,-500.0,0.00027945,5]
[326666481,1715208663920,-500.0,0.00027945,5]
[326666482,1715208663929,-968.67,0.00027945,5]
[326666483,1715208663940,-606.44,0.00027945,5]
[326666484,1715208663949,-500.0,0.00027945,5]
[326666485,1715208663958,-500.0,0.00027945,2]
[326666486,1715208663968,-500.0,0.00027945,5]
[326666487,1715208663978,-500.0,0.00027945,5]
[326666488,1715208663987,-500.0,0.00027945,5]
[326666489,1715208663997,-500.0,0.00027945,5]
[326666490,1715208664006,-641.29,0.00027945,5]
[326666491,1715208664016,-500.0,0.00027945,2]
[326666492,1715208664025,-637.37,0.00027945,5]
[326666493,1715208664035,-500.0,0.00027945,5]
[326666494,1715208664045,-2380.9,0.00027945,5]
[326666495,1715208664054,-200.61,0.00027945,5]
[326666496,1715208664064,-858.35,0.00027945,5]
[326666497,1715208664073,-500.0,0.00027945,5]
[326666498,1715208664083,-500.0,0.00027945,5]
[326666499,1715208664092,-500.0,0.00027945,5]
[326666500,1715208664102,-500.0,0.00027945,5]
[326666501,1715208664113,-500.0,0.00027945,5]
[326666502,1715208664122,-611.05,0.00027945,5]
[326666503,1715208664133,-15383.75,0.00027945,5]
[326666504,1715208664142,-774.77,0.00027945,5]
[326666505,1715208664151,-500.0,0.00027945,5]
[326666506,1715208664161,-500.0,0.00027945,5]
[326666507,1715208664171,-500.0,0.00027945,2]
[326666508,1715208664180,-500.0,0.00027945,5]
[326666509,1715208664191,-1283.74,0.00027945,5]
[326666510,1715208664200,-723.48,0.00027945,5]
[326666511,1715208664210,-500.0,0.00027945,2]
[326666512,1715208664219,-2928.78,0.00027945,5]
[326666513,1715208664229,-500.0,0.00027945,5]
[326666514,1715208664240,-526.97,0.00027945,5]
[326666515,1715208664249,-176.07,0.00027945,5]
[326666516,1715208664259,-500.0,0.00027945,5]
[326666517,1715208664269,-500.0,0.00027945,5]
[326666518,1715208664279,-500.0,0.00027945,5]
[326666519,1715208664289,-500.0,0.00027945,5]
[326666520,1715208664299,-500.0,0.00027945,5]
[326666521,1715208664312,-500.0,0.00027945,5]
[326666522,1715208664322,-327.77,0.00027945,5]
[326666523,1715208664331,-4544.42,0.00027945,5]
[326666524,1715208664340,-500.0,0.00027945,5]
[326666525,1715208664350,-508.12,0.00027945,5]
[326666526,1715208664359,-577.53,0.00027945,5]
[326666527,1715208664368,-500.0,0.00027945,5]
[326666528,1715208664379,-500.0,0.00027945,5]
[326666529,1715208664391,-500.0,0.00027945,5]
[326666530,1715208664402,-500.0,0.00027945,5]
[326666531,1715208664411,-500.0,0.00027945,5]
[326666532,1715208664420,-333.67,0.00027945,5]
[326666533,1715208664430,-421.77,0.00027945,5]
[326666534,1715208664440,-500.0,0.00027945,5]
[326666535,1715208664449,-398.36,0.00027945,5]
[326666536,1715208664459,-500.0,0.00027945,5]
[326666537,1715208664470,-489.31,0.00027945,5]
[326666538,1715208664481,-500.0,0.00027945,5]
[326666539,1715208664492,-167.53,0.00027945,5]
[326666540,1715208664503,-500.0,0.00027945,5]
[326666541,1715208664514,-252.2,0.00027945,5]
[326666542,1715208664524,-500.0,0.00027945,5]
[326666543,1715208664534,-150.0,0.00027953,2]
[326666544,1715208664544,-1000.0,0.0002797,2]
[326666545,1715208664559,-150.0,0.00027988,2]
[326666546,1715208664574,-380.59,0.00028,2]
[326666547,1715208664586,-1800.0,0.00028,29]
[326666548,1715208664597,-150.0,0.00028008,2]
[326666549,1715208664607,-150.0,0.00028012,2]
[326666550,1715208664618,-150.0,0.0002802,2]
[326666551,1715208664629,-150.0,0.0002805,2]
[326666552,1715208664646,-161.98226117,0.00028118,2]
[326666553,1715208664660,-150.0,0.00028118,2]
[326666554,1715208664672,-157.050907,0.00028148,20]
[326666555,1715208664684,-150.0,0.00028159,2]
[326666556,1715208664695,-150.0,0.00028179,2]
[326666557,1715208664705,-406.63,0.000282,2]
[326666558,1715208664715,-552.67,0.000282,2]
[326666559,1715208664724,-150.0,0.00028213,2]
[326666560,1715208664734,-150.0,0.00028215,2]
[326666561,1715208664743,-4990.39766021,0.00028218,2]
[326666562,1715208664754,-150.0,0.00028218,2]
[326666563,1715208664763,-150.0,0.00028231,2]
[326666564,1715208664773,-150.0,0.00028236,2]
[326666565,1715208664782,-150.0,0.00028279,2]
[326666566,1715208664791,-150.0,0.00028291,2]
[326666567,1715208664800,-150.0,0.00028306,2]
[326666568,1715208664811,-150.0,0.00028309,2]
[326666569,1715208664820,-150.0,0.00028335,2]
[326666570,1715208664830,-150.0,0.00028338,2]
[326666571,1715208664840,-150.0,0.00028348,2]
[326666572,1715208664849,-150.0,0.0002835,2]
[326666573,1715208664859,-150.0,0.00028382,2]
[326666574,1715208664868,-3251.1808428,0.00028393,2]
[326666575,1715208664878,-150.0,0.00028396,2]
[326666576,1715208664887,-969.0,0.000284,12]
[326666577,1715208664896,-150.0,0.000284,5]
[326666578,1715208664905,-151.50478802,0.00028402,2]
[326666579,1715208664914,-150.0,0.00028402,2]
[326666580,1715208664924,-150.0,0.00028405,2]
[326666581,1715208664933,-150.0,0.00028406,2]
[326666582,1715208664943,-211.12268693,0.00028412,2]
[326666583,1715208664952,-151.0,0.00028427,2]
[326666584,1715208664962,-250.49088,0.00028427,2]
[326666585,1715208664971,-150.0,0.00028429,2]
[326666586,1715208664980,-150.0,0.00028431,2]
[326666587,1715208664989,-150.0,0.00028441,2]
[326666588,1715208664999,-150.0,0.00028442,2]
[326666589,1715208665008,-150.0,0.00028444,2]
[326666590,1715208665018,-150.0,0.00028446,2]
[326666591,1715208665027,-157.050907,0.00028448,20]
[326666592,1715208665037,-150.0,0.00028457,2]
[326666593,1715208665047,-211.12268693,0.00028465,2]
[326666594,1715208665056,-150.0,0.00028469,2]
[326666595,1715208665066,-700.0,0.0002847,2]
[326666596,1715208665076,-700.0,0.0002847,2]
[326666597,1715208665085,-700.0,0.0002847,2]
[326666598,1715208665095,-150.0,0.00028486,2]
[326666599,1715208665104,-150.0,0.00028492,10]
[326666600,1715208665113,-19221.98558667,0.00028493,2]
[326666601,1715208665123,-361.70450967,0.00028493,2]
[326666602,1715208665134,-2215.11343661,0.00028493,2]
[326666603,1715208665143,-1037.87625114,0.00028493,2]
[326666604,1715208665152,-293.68275383,0.00028493,2]
[326666605,1715208665162,-1042.23614951,0.00028493,2]
[326666606,1715208665171,-155.0,0.00028493,2]
[326666607,1715208665180,-500.0,0.00028493,5]
[326666608,1715208665190,-1134.12,0.00028493,5]
[326666609,1715208665199,-500.0,0.00028493,5]
[326666610,1715208665208,-500.0,0.00028493,2]
[326666611,1715208665218,-500.0,0.00028493,5]
[326666612,1715208665227,-500.0,0.00028493,5]
[326666613,1715208665237,-500.0,0.00028493,5]
[326666614,1715208665246,-500.0,0.00028493,5]
[326666615,1715208665255,-502.42,0.00028493,5]
[326666616,1715208665264,-500.0,0.00028493,5]
[326666617,1715208665274,-500.0,0.00028493,5]
[326666618,1715208665283,-1696.86,0.00028493,5]
[326666619,1715208665292,-500.0,0.00028493,5]
[326666620,1715208665301,-1200.14,0.00028493,5]
[326666621,1715208665319,-1133.78,0.00028493,5]
[326666622,1715208665328,-1384.35,0.00028493,5]
[326666623,1715208665338,-2566.25,0.00028493,5]
[326666624,1715208665349,-500.0,0.00028493,5]
[326666625,1715208665358,-715.4,0.00028493,5]
[326666626,1715208665368,-500.0,0.00028493,5]
[326666627,1715208665377,-519.57,0.00028493,5]
[326666628,1715208665387,-2019.72,0.00028493,5]
[326666629,1715208665398,-500.0,0.00028493,5]
[326666630,1715208665407,-198.91,0.00028493,5]
[326666631,1715208665417,-500.0,0.00028493,5]
[326666632,1715208665427,-500.0,0.00028493,2]
[326666633,1715208665436,-1896.36,0.00028493,5]
[326666634,1715208665446,-1272.4,0.00028493,5]
[326666635,1715208665455,-1036.1,0.00028493,5]
[326666636,1715208665466,-500.0,0.00028493,5]
[326666637,1715208665475,-151.0,0.00028493,7]
[326666638,1715208665485,-1122.05,0.00028493,5]
[326666639,1715208665495,-939.64,0.00028493,5]
[326666640,1715208665504,-151.0,0.00028493,7]
[326666641,1715208665513,-500.0,0.00028493,5]
[326666642,1715208665522,-500.0,0.00028493,5]
[326666643,1715208665531,-500.0,0.00028493,5]
[326666644,1715208665541,-500.0,0.00028493,5]
[326666645,1715208665551,-572.44,0.00028493,5]
[326666646,1715208665560,-1036.9,0.00028493,5]
[326666647,1715208665569,-500.0,0.00028493,5]
[326666648,1715208665578,-500.0,0.00028493,5]
[326666649,1715208665587,-175.75,0.00028493,5]
[326666650,1715208665597,-500.0,0.00028493,5]
[326666651,1715208665606,-500.0,0.00028493,5]
[326666652,1715208665616,-500.0,0.00028493,5]
[326666653,1715208665626,-500.0,0.00028493,5]
[326666654,1715208665636,-500.0,0.00028493,5]
[326666655,1715208665645,-151.0,0.00028493,7]
[326666656,1715208665655,-472.63597535,0.00028493,5]
[326666659,1715208770348,294.35452038,0.00013498,5]
[326666660,1715208853378,250.0,8.887e-05,2]
[326666661,1715208979102,361.70450967,8.887e-05,2]
[326666671,1715209289991,1705.64547962,0.00014998,6]
[326666672,1715209291405,5458.14452038,0.00014998,6]
[326666676,1715209739201,155.91324332,8.902e-05,2]
[326666677,1715209751563,155.0,8.902e-05,2]
[326666678,1715209833791,202.1932044,8.902e-05,2]
[326666679,1715209840498,-5997.39893645,8.903e-05,2]
[326666695,1715209840718,-4047.62830917,8.903e-05,2]
[326666699,1715209840733,-311.39885352,8.903e-05,2]
[326666702,1715209840746,-417.27522362,8.903e-05,2]
[326666705,1715209840761,-4480.79283856,8.903e-05,2]
[326666710,1715209840778,-779.28,8.903e-05,2]
[326666713,1715209840791,-6303.3560839,8.903e-05,2]
[326666716,1715209840804,-467.62404618,8.903e-05,2]
[326666719,1715209840815,-591.6,8.915e-05,2]
[326666721,1715209840825,-202.0,8.916e-05,2]
[326666723,1715209840836,-4755.44446193,8.932e-05,2]
[326666725,1715209840846,-1380.31778497,8.932e-05,2]
[326666727,1715209840858,-1103.90872281,0.00013692,2]
[326666729,1715209840868,-444.55836807,0.00013699,2]
[326666737,1715209841281,-425.65236194,0.00013699,2]
[326666738,1715209841293,-224.99,0.00013699,2]
[326666739,1715209841304,-282.1344729,0.00014,2]
[326666740,1715209841314,-256.5545,0.000149,2]
[326666741,1715209841325,-357.32,0.000149,2]
[326666742,1715209841336,-311.34410862,0.00014998,2]
[326666743,1715209841347,-1037.87625114,0.00014998,2]
[326666744,1715209841362,-206.321037,0.00014998,2]
[326666745,1715209841374,-155.78844392,0.00014998,2]
[326666746,1715209841386,-155.0,0.00014998,2]
[326666747,1715209841396,-441.10469184,0.00014999,2]
[326666748,1715209841407,-155.0,0.00015,2]
[326666749,1715209841418,-40.91413264,0.00015,2]
[326666750,1715209841431,-427.34999358,0.00015,2]
[326666751,1715209841444,-367.39999985,0.00015,2]
[326666752,1715209841457,-490.0,0.00015,2]
[326666753,1715209841470,-423.02988,0.00015,2]
[326666754,1715209841483,-378.73,0.00015,2]
[326666755,1715209841496,-35291.87472727,0.00015,2]
[326666756,1715209841507,-4213.84844279,0.00015,2]
[326666757,1715209841518,-533.82,0.00015895,2]
[326666758,1715209841529,-164.36,0.00016111,2]
[326666759,1715209841540,-250.0,0.00016457,2]
[326666760,1715209841552,-1225.84618609,0.000165,2]
[326666761,1715209841562,-182.31,0.00016712,2]
[326666762,1715209841573,-250.0,0.00016907,2]
[326666763,1715209841584,-174.98,0.00017035,2]
[326666764,1715209841597,-233.93,0.00017035,2]
[326666765,1715209841608,-1675.33662211,0.00017259,2]
[326666766,1715209841619,-1003.7401,0.00017678,2]
[326666767,1715209841631,-1000.0,0.00017678,2]
[326666768,1715209841642,-166.37613092,0.00017679,2]
[326666769,1715209841652,-486763.9474912,0.00017778,2]
[326666770,1715209841707,-6349.31168983,0.00017778,2]
[326666771,1715209841720,-65861.79382598,0.00017778,2]
[326666772,1715209841734,-11941.32622673,0.00017778,2]
[326666773,1715209841748,-1451.45000021,0.00017778,2]
[326666774,1715209841761,-333.0,0.00017778,2]
[326666775,1715209841777,-380.54,0.00017778,2]
[326666776,1715209841792,-826.3254998,0.00017778,2]
[326666777,1715209841806,-1962.53935742,0.00017778,2]
[326666778,1715209841820,-5450.93999964,0.00017778,2]
[326666779,1715209841834,-789.29286824,0.00017778,2]
[326666780,1715209841851,-1037.08295783,0.00017778,2]
[326666781,1715209841864,-5737.5,0.00017778,2]
[326666782,1715209841880,-327.23650159,0.00017778,2]
[326666783,1715209841893,-2603.71306986,0.00017778,2]
[326666784,1715209841906,-779.78744094,0.00017778,2]
[326666785,1715209841920,-363.76455997,0.00017778,2]
[326666786,1715209841934,-1018.6424211,0.00017778,2]
[326666787,1715209841947,-611.8,0.00017778,2]
[326666788,1715209841961,-432.13597191,0.00017778,2]
[326666789,1715209841974,-290.0,0.00017778,2]
[326666790,1715209841988,-612.612,0.00017778,2]
[326666791,1715209842001,-1226.39594938,0.00017778,2]
[326666792,1715209842015,-2223.84688304,0.00017778,2]
[326666793,1715209842028,-6541.10183312,0.00017778,2]
[326666794,1715209842041,-599.14048453,0.00017778,2]
[326666795,1715209842054,-80877.00435772,0.00017778,2]
[326666796,1715209842065,-245000.0,0.00017779,2]
[326666797,1715209842075,-1313.4756,0.0001778,2]
[326666798,1715209842085,-3129.54212736,0.0001778,2]
[326666799,1715209842096,-450.23160422,0.00017868,2]
[326666800,1715209842107,-990.62994113,0.00017877,2]
[326666801,1715209842117,-2321.46650841,0.00017877,2]
[326666802,1715209842131,-1878.64117005,0.00017877,2]
[326666803,1715209842142,-155.0,0.00017877,2]
[326666804,1715209842153,-155.56538191,0.00017877,2]
[326666805,1715209842164,-305.36506382,0.00017877,2]
[326666806,1715209842174,-156.64002537,0.00017877,2]
[326666807,1715209842185,-215.98548558,0.00017877,2]
[326666808,1715209842196,-325.67432968,0.00017877,2]
[326666809,1715209842207,-156.53171333,0.00017877,2]
[326666810,1715209842217,-156.18282231,0.00017877,2]
[326666811,1715209842229,-178.12197398,0.00017877,2]
[326666812,1715209842240,-158.52126803,0.00017877,2]
[326666813,1715209842251,-155.0,0.00017877,2]
[326666814,1715209842262,-174.84052728,0.00017877,2]
[326666815,1715209842273,-633.17880621,0.00017877,2]
[326666816,1715209842284,-617.74433242,0.00017877,2]
[326666817,1715209842294,-236.56224941,0.00017877,2]
[326666818,1715209842304,-155.0,0.00017877,2]
[326666819,1715209842315,-289.83229593,0.00017878,2]
[326666820,1715209842325,-4933.23915409,0.00017878,2]
[326666821,1715209842335,-160.90073411,0.00017879,2]
[326666822,1715209842346,-149053.13890156,0.0001788,2]
[326666823,1715209842356,-1009.30696915,0.0001788,2]
[326666824,1715209842366,-1050.0,0.00018,3]
[326666825,1715209842379,-840.0,0.000183,2]
[326666826,1715209842390,-167.0,0.00018344,2]
[326666827,1715209842401,-3293.4022625,0.00019,2]
[326666828,1715209842411,-581.2587547,0.00019178,2]
[326666829,1715209842422,-500.0,0.00019178,2]
[326666830,1715209842432,-500.0,0.00019178,2]
[326666831,1715209842442,-500.0,0.00019178,2]
[326666832,1715209842453,-287.3010304,0.00019178,2]
[326666833,1715209842463,-500.0,0.00019178,2]
[326666834,1715209842474,-468.46670207,0.00019178,2]
[326666835,1715209842484,-500.0,0.00019178,2]
[326666836,1715209842495,-500.0,0.00019178,2]
[326666837,1715209842505,-500.0,0.00019178,2]
[326666838,1715209842515,-500.0,0.00019178,2]
[326666839,1715209842526,-500.0,0.00019178,2]
[326666840,1715209842536,-500.0,0.00019178,2]
[326666841,1715209842546,-500.0,0.00019178,2]
[326666842,1715209842556,-500.0,0.00019178,2]
[326666843,1715209842568,-500.0,0.00019178,2]
[326666844,1715209842579,-500.0,0.00019178,2]
[326666845,1715209842590,-500.0,0.00019178,2]
[326666846,1715209842601,-500.0,0.00019178,2]
[326666847,1715209842612,-500.0,0.00019178,2]
[326666848,1715209842625,-500.0,0.00019178,2]
[326666849,1715209842635,-410.54197133,0.00019178,2]
[326666850,1715209842645,-500.0,0.00019178,2]
[326666851,1715209842655,-352.02170134,0.00019178,2]
[326666852,1715209842665,-500.0,0.00019178,2]
[326666853,1715209842676,-503.38210574,0.00019178,2]
[326666854,1715209842690,-500.0,0.00019178,2]
[326666855,1715209842701,-404.30557174,0.00019178,2]
[326666856,1715209842712,-500.0,0.00019178,2]
[326666857,1715209842722,-500.0,0.00019178,2]
[326666858,1715209842735,-500.0,0.00019178,2]
[326666859,1715209842746,-500.0,0.00019178,2]
[326666860,1715209842757,-500.0,0.00019178,2]
[326666861,1715209842767,-500.0,0.00019178,2]
[326666862,1715209842778,-500.0,0.00019178,2]
[326666863,1715209842789,-500.0,0.00019178,2]
[326666864,1715209842810,-500.0,0.00019178,2]